Cogmind - Beta 17 @@@ ROGUE MODE // 2026.08.04 @ 14:35:37 Player: MeatnTaters Result: Self-destructed Performance ------------- Evolutions (1) 500 Regions Visited (2) 400 Robots Destroyed (29) 145 Value Destroyed (763) 763 Prototype IDs (0) 0 Alien Tech Used (0) 0 Bonus (0) 0 TOTAL SCORE: 1808 Bonus ------- None Cogmind --------- Core Integrity 233/400 Matter 390/400 Energy 265/265 System Corruption 0% Temperature Cool (0) Movement Treading (480) Ox4 Location -9/Materials Parts ------- > --- POWER (1) -------- Improved Ion Engine > --- PROPULSION (2) --- Light Treads > --- UTILITY (4) ------ Huge Storage Unit Medium Matter Pod Targeting Computer Light Armor Plating > --- WEAPON (2) ------- Particle Gun > --- INVENTORY (25) --- Ion Engine Ion Engine Improved Ion Engine Improved Heat Sink Visual Processing Unit Seismic Detector Core Shielding EM Pulse Gun Small Laser Particle Gun Light Assault Rifle Peak State ------------ > --- POWER ------------ Ion Engine > --- PROPULSION ------- Light Treads Light Treads > --- UTILITY ---------- Huge Storage Unit Medium Matter Pod Targeting Computer Light Armor Plating > --- WEAPON ----------- Particle Gun Heavy Assault Rifle > --- INVENTORY -------- Ion Engine Ion Engine Improved Ion Engine Improved Heat Sink Visual Processing Unit Core Shielding EM Pulse Gun Small Laser Particle Gun Light Assault Rifle [Rating: 12] Favorites ----------- Power Ion Engine Engine Ion Engine Propulsion Light Treads Treads Light Treads Utility Targeting Computer Storage Huge Storage Unit Processor Targeting Computer Protection Light Armor Plating Weapon Small Laser Energy Gun Small Laser Ballistic Gun Assault Rifle Build | -11 -10 -9 ------- Run | Yrd Mat Mat Slots Evolved 2 | . . 2 Power . | . . . Propulsion . | . . . Utility 2 | . . 2 Weapon . | . . . Parts Attached 19 | 5 6 8 Power 4 | 1 2 1 Engine 4 | 1 2 1 Core . | . . . Reactor . | . . . Propulsion 4 | 2 . 2 Treads 4 | 2 . 2 Leg . | . . . Wheel . | . . . Hover . | . . . Flight . | . . . Utility 7 | 1 3 3 Device . | . . . Storage 4 | 1 2 1 Processor 1 | . 1 . Hackware . | . . . Protection 2 | . . 2 Artifact . | . . . Weapon 4 | 1 1 2 Energy Gun 2 | . 1 1 Energy Cannon . | . . . Ballistic Gun 2 | 1 . 1 Ballistic Cannon . | . . . Launcher . | . . . Special Weapon . | . . . Impact Weapon . | . . . Slashing Weapon . | . . . Piercing Weapon . | . . . Special Melee Weapon . | . . . Unidentified Prototypes . | . . . Parts Lost 8 | . . 8 Power 1 | . . 1 Propulsion 3 | . . 3 Utility 1 | . . 1 Weapon 3 | . . 3 Highest Loss Streak 4 | . . 4 To Critical Strikes . | . . . Average Backups 9 | 1 7 11 Power 2 | . 2 3 Propulsion . | . . . Utility 3 | . 3 3 Weapon 3 | 1 2 3 Tool/Special . | . . . Unused Backups 13 | . 1 12 Power 5 | . 1 4 Propulsion . | . . . Utility 4 | . . 4 Weapon 4 | . . 4 Tool/Special . | . . . Average Slot Usage (%) 96 | . 96 95 Engine 12 | . 14 10 Treads 23 | . 28 18 Storage 18 | . 14 22 Processor 11 | . 11 11 Protection 5 | . . 10 Energy Gun 11 | . 12 9 Ballistic Gun 12 | . 14 11 Peak Build Rating 12 | 5 8 12 Average Rating 9 | 4 7 11 On Entrance 4 | . 5 8 Avg Prop Armor Cover (%) . | . . . Naked Turns . | . . . Heaviest Build 98 | 12 88 98 Greatest Support 40 | 40 40 40 Greatest Overweight (x) 4 | . 2 4 Average Overweight (x) 1 | . 1 2 Largest Inventory Capacity 25 | 8 25 25 Average Capacity 23 | 6 21 25 Most Carried 14 | 3 11 14 Average Carried 9 | 2 7 11 Final Capacity 25 | 8 25 25 Final Carried 11 | 3 11 11 Class Distribution -------------------- 100% | Mutant Dominant Class ---------------- Mutant | -10/Materials Mutant | -9/Materials Resources | -11 -10 -9 ----------- Run | Yrd Mat Mat Matter Collected 744 | 250 268 226 Remotely . | . . . Salvage Created 951 | . 359 592 Parts 61 | . 23 38 Haulers Intercepted 1 | . . 1 Recyclers Shooed . | . . . Parts Field Recycled . | . . . Retrieved Matter . | . . . Parts Self-Destructed . | . . . Prevented . | . . . Parts Restored . | . . . Kills | -11 -10 -9 ------- Run | Yrd Mat Mat Combat Hostiles Destroyed 26 | . 10 16 Guns 26 | . 10 16 Classes Destroyed 5 | . 3 2 Hauler 1 | . . 1 Watcher 2 | . 1 1 Swarmer 9 | . 3 6 Grunt 15 | . 7 8 Sentry 2 | . . 2 Best Kill Streak 5 | . 2 5 Combat Bots Only 5 | . 2 5 Max Kills in Single Turn 1 | . 1 1 Gunslinging . | . . . Exploded . | . . . Melee . | . . . Uniques/NPCs Destroyed . | . . . Combat | -11 -10 -9 -------- Run | Yrd Mat Mat Hostile Shots Fired 190 | . 48 142 Missed 55 | . 7 48 Hits 135 | . 41 94 Projectile 135 | . 41 94 Critical Strikes 1 | . . 1 Damage Taken 1456 | . 418 1038 Core 248 | . 81 167 Absorbed by Shields . | . . . Core Remaining (%) 83 | 100 67 . Volleys Fired 83 | . 36 47 Largest 2 | . 2 2 Hottest 88 | . 60 88 Shots Fired 162 | . 68 94 Gun 162 | . 68 94 Cannon . | . . . Launcher . | . . . Special . | . . . Kinetic 90 | . 36 54 Thermal 72 | . 32 40 Explosive . | . . . Electromagnetic . | . . . Robot Hit Streak 11 | . 11 9 Robot Miss Streak 5 | . 3 5 Penetration Max . | . . . Secondary Targets 2 | . 2 . Max Gunslinging Chain 1 | . 1 . Shots Hit Robots 110 | . 46 64 Core Hits 51 | . 22 29 Critical Kills 1 | . . 1 Critical Parts Destroyed . | . . . Critical Strikes 2 | . . 2 Burn 1 | . . 1 Destroy 1 | . . 1 Melee Attacks . | . . . Impact . | . . . Slashing . | . . . Piercing . | . . . Sneak Attacks . | . . . Combat Hostiles . | . . . Follow-up Attacks . | . . . Damage Inflicted 1408 | . 530 878 Guns 1408 | . 530 878 Cannons . | . . . Explosions . | . . . Melee . | . . . Ramming . | . . . Kinetic 830 | . 297 533 Thermal 578 | . 233 345 Explosive . | . . . Electromagnetic . | . . . Impact . | . . . Slashing . | . . . Piercing . | . . . Highest Corruption . | . . . Average Corruption . | . . . Corruption Purged . | . . . Corruption Blocked . | . . . Overload Shots . | . . . Overflow Damage . | . . . Projectiles . | . . . Explosions . | . . . Melee . | . . . Knockbacks . | . . . Impact . | . . . Kinetic . | . . . Secondary . | . . . Self-Inflicted Damage . | . . . Shots . | . . . Rammed . | . . . Targets Rammed . | . . . Kicked . | . . . Crushed . | . . . Highest Temperature 226 | . 78 226 Average Temperature 65 | . 28 81 Received Heat Transfer 555 | . 156 399 Siege Activations . | . . . Martial Activations . | . . . Shielding Activations . | . . . Robots Disrupted . | . . . Combat Hostiles . | . . . Robots Corrupted . | . . . Combat Hostiles . | . . . Parts Fried . | . . . Impact Corruptions . | . . . Robots Melted . | . . . Combat Hostiles . | . . . Parts Melted 1 | . . 1 Heat Transferred 1420 | . 525 895 Parts Sabotaged . | . . . Parts Stolen . | . . . Parts Stripped . | . . . Power Chain Reactions . | . . . Alert | -11 -10 -9 ------- Run | Yrd Mat Mat Maximum Alert Level . | . . . Low Security (%) 100 | 100 100 100 Level 1 . | . . . Level 2 . | . . . Level 3 . | . . . Level 4 . | . . . Level 5 . | . . . High Security . | . . . Max Security . | . . . Peak Influence 132 | . 55 132 Initial . | . . . Average 21 | . 12 31 Influence Increases 687 | . 277 410 Destroy 0b10 Robot/C 520 | . 200 320 Destroy 0b10 Robot/NC 15 | . 5 10 Destroy Leader 116 | . 52 64 Successful Hack 4 | . 4 . Destroy Structure 2 | . 1 1 Lose Combat Pursuer 30 | . 15 15 Influence Decreases 687 | . 277 410 Time Decay 611 | . 277 334 Lost Part 76 | . . 76 Squads Dispatched 4 | . 2 2 Investigation 1 | . 1 . Extermination . | . . . Reinforcement 3 | . 1 2 Assault . | . . . Garrison . | . . . Intercept . | . . . Searches Triggered . | . . . Construction Impeded . | . . . Haulers Reinforced . | . . . Active Scanning Responses . | . . . Cargo Convoy Interrupts . | . . . Stealth | -11 -10 -9 --------- Run | Yrd Mat Mat Distress Signals 4 | . 2 2 Communications Jammed . | . . . Distress Signals . | . . . Times Spotted 48 | . 18 30 Peak Tracking Total 7 | . 3 7 Tactical Retreats 2 | . 1 1 Traps | -11 -10 -9 ------- Run | Yrd Mat Mat Traps Triggered 1 | . 1 . Indirectly . | . . . Trap Hack Attempts . | . . . Triggered . | . . . Disarmed . | . . . Reprogrammed . | . . . Reused . | . . . Traps Extracted . | . . . Installed . | . . . Triggered . | . . . Machines | -11 -10 -9 ---------- Run | Yrd Mat Mat Machines Disabled . | . . . Max in Single Turn . | . . . Machines Repaired . | . . . Machines Dismantled . | . . . Machines Sabotaged . | . . . Overloaded Fab Kills . | . . . Hacking | -11 -10 -9 --------- Run | Yrd Mat Mat Machines Accessed 7 | . 5 2 Terminals 6 | . 4 2 Fabricators . | . . . Repair Stations . | . . . Recycling Units 1 | . 1 . Scanalyzers . | . . . Garrison Access . | . . . Total Hacks 14 | . 9 5 Successful 2 | . 2 . Failed 12 | . 7 5 Catastrophic 3 | . 1 2 Database Lockouts . | . . . Manual 9 | . 6 3 Terminals 13 | . 8 5 Fabricators . | . . . Repair Stations . | . . . Recycling Units 1 | . 1 . Scanalyzers . | . . . Garrison Access . | . . . Terminal Hacks 2 | . 2 . Robot Analysis 1 | . 1 . Zone Layout 1 | . 1 . Fabricator Hacks . | . . . Repair Station Hacks . | . . . Recycling Unit Hacks . | . . . Scanalyzer . | . . . Garrison Access Hacks . | . . . Unauthorized Hacks . | . . . Terminals . | . . . Fabricators . | . . . Repair Stations . | . . . Recycling Units . | . . . Scanalyzers . | . . . Garrison Access . | . . . Data Cores Recovered . | . . . Used . | . . . Hacking Detections 7 | . 5 2 Full Trace Events . | . . . Feedback Events . | . . . Feedback Blocked . | . . . Robot Schematics Acquired . | . . . Robots Built . | . . . Authchips . | . . . Time . | . . . Total Robot Build Rating . | . . . Part Schematics Acquired . | . . . Parts Built . | . . . Authchips . | . . . Time . | . . . Total Part Build Rating . | . . . Part Studies Acquired . | . . . Parts Repaired . | . . . Time . | . . . Parts Recycled . | . . . Recycled Matter . | . . . Retrieved Matter . | . . . Retrieved Components . | . . . Parts Scanalyzed . | . . . Part Schematics Acquired . | . . . Parts Damaged . | . . . Bothacking | -11 -10 -9 ------------ Run | Yrd Mat Mat Used RIF Installer . | . . . Robots Hacked . | . . . Non-combat . | . . . Combat . | . . . Robot Hacks Applied . | . . . Relay Couplers Released . | . . . Fabnet Peak Effective % . | . . . Robots Rewired . | . . . Allies Hacked . | . . . Hacks Repelled . | . . . Allies | -11 -10 -9 -------- Run | Yrd Mat Mat Total Allies . | . . . Largest Group . | . . . Highest-Rated Group . | . . . Highest-Rated Ally . | . . . Total Orders . | . . . Ally Attacks . | . . . Total Damage . | . . . Kills . | . . . Allies Corrupted . | . . . Allies Melted . | . . . Intel | -11 -10 -9 ------- Run | Yrd Mat Mat Active Infowar (turns) . | . . . Robot Analysis Total 1 | . 1 . Derelict Logs Recovered . | . . . Drone Launches . | . . . Drone Recoveries . | . . . Exploration | -11 -10 -9 ------------- Run | Yrd Mat Mat Turns Passed 2634 | 74 1213 1347 Spaces Moved 760 | 43 405 312 Core 4 | 4 . . Treads 756 | 39 405 312 Legs . | . . . Wheels . | . . . Hover . | . . . Flight . | . . . Fastest Speed 50 | 50 160 320 Average Speed 292 | 149 256 358 Slowest Speed 480 | 160 320 480 Overloaded Moves . | . . . Propulsion Burnouts . | . . . Robots Hopped . | . . . Potential Cave-ins . | . . . Cave-ins Triggered . | . . . Exploration Rate (%) 38 | 4 66 44 Regions Visited 2 Branch Regions . Pre-discovered Areas . | . . . Known Exits Taken . | . . . Unknown Exits Taken 2 | 1 1 . Scrap Searched . | . . . Spaces Dug . | . . . Terrain Destroyed . | . . . Melee . | . . . Projectile . | . . . AOE . | . . . Terrain Rammed . | . . . Walls Destroyed . | . . . Machines Disabled . | . . . Actions | -11 -10 -9 --------- Run | Yrd Mat Mat Total 1009 | 50 515 444 Wait 117 | . 52 65 Move 758 | 42 404 312 Hop . | . . . Pick Up 23 | 3 13 7 Fast Attach 7 | 5 1 1 Attach 9 | . 2 7 Detach . | . . . Swap 6 | . 3 3 Drop 6 | . 4 2 Fire 83 | . 36 47 Melee . | . . . Ram . | . . . Kick . | . . . Crush . | . . . Escape Stasis . | . . . Rewire . | . . . Trap . | . . . Miscellaneous . | . . . Route ------- -11/Scrapyard -10/Materials (discovered 2 exits: *Mat / [*Min]) -9/Materials (discovered 2 exits: [*Mat x2]) History --------- Turn | Location | Event 16 | -11/Scrapyard | Discovered new exit (range 15) 75 | -11/Scrapyard | Entered Materials 225 | -10/Materials | Discovered new exit (range 11) 307 | -10/Materials | Build established: Mutant 968 | -10/Materials | Discovered new exit (range 16) 1288 | -10/Materials | Entered another Materials area 1288 | -9/Materials | Evolved 2 slots: Utility x2 1958 | -9/Materials | Discovered new exit (range 10) 2161 | -9/Materials | Lost 3 parts (1n1u1w) 2283 | -9/Materials | Lost 4 parts (1p2n1w) 2626 | -9/Materials | Discovered new exit (range 3) 2635 | -9/Materials | Self-destructed Last Messages --------------- Gun. 02481_ K-01 Serf collects debris. 02481_ R-06 Scavenger collects Prototype Energy Gun. 02483_ R-06 Scavenger collects Lgt. Treads. 02485_ K-01 Serf collects debris. 02485_ R-06 Scavenger collects Prototype Energy Gun. 02486_ R-06 Scavenger collects Prototype Energy Cannon. 02488_ K-01 Serf collects debris. 02516_ R-06 Scavenger collects Prototype Energy Cannon. 02531_ K-01 Serf cleans the Nuclear Reactor. 02626_ EXIT=FOUND 02631_ O-16 Technician: "IFF HANDSHAKE FAILED. SECURING TERMINAL." 02631_ W-16 Scout sends out distress signal. 02635_ Hvy. Assault Rifle destroyed. Map ----- +----------------------------------------------------+ | | | | | | | | | | | | | | | | | ???????????????????????????????????????? | | ???????????????????????????????????????? | | ##?????????????????????????????????????? | | ###########???????????????????????????? | | # #???????????????????????????? | | # """ #???????????????????????????? | | # """ "Y" #???????????????????????????? | | # """ #???????????????????????????? | | # """ #???????????????????????????? | | # #???????????????????????????? | | + #???????????????????????????? | | ## * #??????????????##########???? | | ###+####################### #???? | | % + #???? | | ############# #???? | | =* #???????# # #???? | | ** #???????# < # #???? | | *! #???????# @# #???? | | "" ###???????# + #???? | | "" ########### # #???? | | "" # ## # #???? | | # ## ##########???? | | + # ????????????? | | ############# # Y ????????????? | | ????????????# + ????????????? | | ????????????# # ????????????? | | ????????????# # ????????????? | | ????????????# ## #????????????? | | ????????????# ## ?????????????? | | ????????????########### ?????????????? | | ??????????????????????# ?????????????? | | ??????????????????????# ?????????????? | | ??????????????????????? ?????????????? | | ???????????????????????????????????????? | | ???????????????????????????????????????? | | ???????????????????????????????????????? | | ???????????????????????????????????????? | | ???????????????????????????????????????? | | ???????????????????????????????????????? | | ???????????????????????????????????????? | | ???????????????????????????????????????? | | ???????????????????????????????????????? | +----------------------------------------------------+ Best States ------------- Heat Dissipation 28 Energy Generation 12 Energy Capacity 265 Matter Stores 400 Matter Capacity 400 Sight Range 16 Terrain Scan Density 10 Armor Coverage 150 Evasion (%) 40 Targeting Accuracy 5 Recoil Reduction 2 Item Schematics ----------------- None Robot Schematics ------------------ None Fabricated ------------ Nothing Repaired ---------- Nothing Studied --------- None Alien Tech Used ----------------- None Achievements -------------- None Challenges ------------ None Game ------ Seed FocalForceArticulator Manual? 0 Play Time 00:15:25 Cumulative 29.3 hours Start 2026.08.04 @ 14:21:41 End 2026.08.04 @ 14:35:37 Sessions 1 Manual Loads 0 Difficulty Rogue Special Mode None Game No. 36 Rogue 15 Adventurer 21 Explorer 0 Win Type - Total 0 Types 0/0/0/0/0/0/0/0/0/0 Lore% 19 Gallery% 22 Achievement% 19 Wizard Run 0 Options --------- Layout 1 ASCII 0 Keyboard 0 Movement Mouse Keybinds 0 Fullscreen 1 Font 32/SmallcapsGlow Map View 50x35 Zoom Use 0% Tactical HUD 1 Map Filters NONE Filters NONE Steam 1 RUN: fd24081a-a259-4e3f-b0a3-a62c9fb370ae